bitfinex-derivatives/quotes_ETHF0:USTF0_20251028
["timestamp","ask_amount","ask_price","bid_price","bid_amount"]
[1761625376154,1.3352,4105.0,4104.9,1.89339047]
[1761625376645,1.3352,4105.0,4104.9,2.33190047]
[1761625377360,1.3352,4105.0,4104.9,1.89339047]
[1761625377645,1.3352,4105.0,4104.9,1.93636544]
[1761625377853,1.3352,4105.0,4104.9,0.63953306]
[1761625379653,1.3352,4105.0,4104.9,0.03875637]
[1761625379854,0.76548,4104.3,4104.2,1.29683238]
[1761625380052,1.20989,4104.2,4104.1,1.29683238]
[1761625380253,0.5524,4103.8,4103.7,3.41955362]
[1761625381360,0.99103,4103.8,4103.7,3.41955362]
[1761625382553,1.20993,4103.8,4103.7,2.98091362]
[1761625382752,1.20993,4103.8,4103.7,1.25385741]
[1761625385763,1.20993,4103.8,4103.5,1.72705621]
[1761625385764,0.7713,4103.8,4103.5,1.72705621]
[1761625385954,1.34926,4103.5,4103.4,1.72944399]
[1761625386156,0.471,4102.5,4102.2,2.16378785]
[1761625386459,0.3415,4101.9,4101.8,1.69269741]
[1761625387058,0.34344617,4101.9,4101.8,1.69474318]
[1761625387260,0.00194617,4101.9,4101.8,1.69474318]
[1761625387755,0.1337,4102.5,4102.4,0.43878]
[1761625388162,0.3415,4102.8,4102.7,0.43875]
[1761625388454,1.09658,4103.9,4102.3,4.3336868]
[1761625388455,0.4752,4103.0,4102.3,4.3336868]
[1761625388666,0.6998,4103.0,4102.9,0.43873]
[1761625388861,0.7948,4102.8,4102.7,0.43875]
[1761625389867,0.3415,4102.8,4102.7,0.43875]
[1761625391864,0.3415,4102.8,4102.7,1.07493324]
[1761625392467,0.5661,4102.8,4102.7,1.07493324]
[1761625392768,0.3415,4102.8,4102.7,1.07493324]
[1761625393262,0.00178578,4103.0,4102.9,0.43873]
[1761625393457,0.00178578,4103.0,4102.9,1.07491324]
[1761625394059,0.13998578,4103.0,4102.9,1.07491324]
[1761625394259,0.00178578,4103.0,4102.9,1.07491324]
[1761625396356,0.48148578,4103.0,4102.9,1.07491324]
[1761625402875,1.37350578,4103.0,4102.9,1.07491324]
[1761625403673,0.93478578,4103.0,4102.9,1.07491324]
[1761625405574,1.37350578,4103.0,4102.9,1.07491324]
[1761625406075,0.70608578,4103.0,4102.9,1.07491324]
[1761625406478,0.89199,4103.3,4103.2,0.87629]
[1761625406679,0.89199,4103.3,4103.2,3.24887736]
[1761625407175,0.89199,4103.3,4103.2,1.51247324]
[1761625407374,0.89370349,4103.3,4103.2,1.51247324]
[1761625407876,0.89370349,4103.3,4103.2,2.76720508]
[1761625408478,1.23520349,4103.3,4103.2,2.76720508]
[1761625415986,1.23520349,4103.3,4103.2,0.63618324]
[1761625417177,1.2287,4103.2,4103.1,1.30598502]
[1761625417374,1.22875,4102.7,4102.6,1.74017118]
[1761625418485,1.22876,4102.6,4102.5,1.74017118]
[1761625421586,1.36687,4102.5,4102.4,1.74017118]
[1761625423591,1.22878,4102.4,4102.3,1.74017118]
[1761625424588,0.43879,4102.3,4102.2,3.21520302]
[1761625424788,0.77189,4102.3,4102.2,3.21520302]
[1761625424984,1.22879,4102.3,4102.2,3.21520302]
[1761625425687,0.4388,4102.2,4102.1,1.74017118]
[1761625425881,0.57692,4102.0,4101.9,1.96047118]
[1761625426084,1.36692,4102.0,4101.9,1.96047118]
[1761625426387,1.36692,4102.0,4101.9,0.2203]
[1761625428089,1.22883,4101.9,4101.8,1.74221695]
[1761625428288,1.22883,4101.9,4101.8,0.22234577]
[1761625428692,1.22883,4101.9,4101.8,0.89219577]
[1761625428890,1.22883,4101.9,4101.8,1.24499577]
[1761625429495,1.22883,4101.9,4101.8,0.80614577]
[1761625430493,1.22883,4101.9,4101.8,1.24498577]
[1761625431791,1.22883,4101.9,4101.8,1.49972771]
[1761625434182,0.43883,4101.9,4101.8,1.85252771]
[1761625434589,0.77193,4101.9,4101.8,1.85252771]
[1761625434888,1.00233,4101.9,4101.8,1.85252771]
[1761625435087,1.00233,4101.9,4101.8,0.80614577]
[1761625435289,1.22883,4101.9,4101.8,0.45334577]
[1761625436196,1.22883,4101.9,4101.8,1.24499577]
[1761625439299,1.22883,4101.9,4101.8,2.98516695]
[1761625440990,1.22883,4101.9,4101.8,2.19351695]
[1761625441393,1.22883,4101.9,4101.8,0.00204577]
[1761625441691,0.5635,4101.1,4101.0,2.78655312]
[1761625441898,0.79,4101.1,4101.0,1.85048194]
[1761625442199,0.3331,4101.4,4101.3,1.243]
[1761625442389,0.89573,4101.9,4101.8,0.4513]
[1761625442591,1.00229,4102.3,4102.2,0.231]
[1761625442796,1.00229,4102.3,4102.2,1.93648194]
[1761625442797,0.79,4102.3,4102.2,1.93648194]
[1761625442992,1.22879,4102.3,4102.2,2.28928194]
[1761625443699,0.79,4102.3,4102.2,2.28928194]
[1761625444497,1.22879,4102.3,4102.2,2.28928194]
[1761625445105,0.79,4102.3,4102.2,2.28928194]
[1761625445903,1.22879,4102.3,4102.2,2.28928194]
[1761625446305,1.22879,4102.3,4102.2,4.02927378]
[1761625448807,1.00229,4102.3,4102.2,4.02927378]
[1761625449306,0.5635,4102.3,4102.2,4.02927378]
[1761625449504,0.1381,4103.0,4102.2,4.02927378]
[1761625449505,0.3138,4102.9,4102.8,0.2234]
[1761625449801,0.75252,4103.0,4102.9,1.19693]
[1761625450006,0.75252,4103.0,4102.9,2.93850347]
[1761625450201,0.3138,4103.0,4102.9,2.93850347]
[1761625450506,0.3138,4103.2,4103.1,1.19691]
[1761625450695,0.3138,4103.2,4103.1,2.24329194]
[1761625452007,0.00171349,4103.3,4103.2,0.7582]
[1761625452907,0.00171349,4103.3,4103.2,2.49915603]
[1761625453202,0.52821349,4103.3,4103.2,0.7582]
[1761625453507,0.74431349,4103.3,4103.2,0.7582]
[1761625454608,0.52821349,4103.3,4103.2,0.7582]
[1761625455003,0.31551349,4103.3,4103.2,0.7582]
[1761625455806,0.00171349,4103.3,4103.2,0.7582]
[1761625456005,0.00171349,4103.3,4103.2,2.49915603]
[1761625456210,0.00171349,4103.3,4103.2,0.7582]
[1761625456799,0.31551349,4103.3,4103.2,0.7582]
[1761625457005,0.96690349,4103.3,4103.2,1.1969]
[1761625457510,0.75420349,4103.3,4103.2,1.1969]
[1761625458708,0.31551349,4103.3,4103.2,1.1969]
[1761625459213,0.00171349,4103.3,4103.2,1.1969]
[1761625459916,0.44040349,4103.3,4103.2,1.1969]
[1761625460117,0.96690349,4103.3,4103.2,1.1969]
[1761625462116,1.18300349,4103.3,4103.2,0.8806]
[1761625462316,1.18300349,4103.3,4103.2,0.4419]
[1761625462712,1.18300349,4103.3,4103.2,0.8806]
[1761625463811,0.4387,4103.2,4103.1,1.04638194]
[1761625464011,1.1813,4103.2,4103.1,1.04638194]
[1761625464318,1.1813,4103.2,4103.1,1.80458194]
[1761625464613,0.43872,4103.0,4102.9,1.74095603]
[1761625464815,0.5265,4102.6,4102.5,1.04638194]
[1761625465117,0.7426,4102.6,4102.5,2.3491661]
[1761625465714,1.18136,4102.6,4102.5,2.5725661]
[1761625467315,1.18136,4102.6,4102.5,1.26978194]
[1761625468219,1.18136,4102.6,4102.5,1.04638194]
[1761625468410,1.18136,4102.6,4102.5,2.34974163]
[1761625468611,1.18136,4102.6,4102.5,1.04638194]
[1761625469113,0.75257,4102.5,4102.4,1.30335969]
[1761625469412,1.31687,4102.5,4102.4,1.30335969]
[1761625469610,1.31687,4102.5,4102.4,1.52675969]
[1761625469806,1.31687,4102.5,4102.4,1.74525969]
[1761625470011,1.31687,4102.5,4102.4,0.7582]
[1761625470610,0.662,4102.5,4102.4,1.19698]
[1761625472521,1.10077,4102.5,4102.4,1.19698]
[1761625475319,0.96527,4102.5,4102.4,1.19698]
[1761625475816,1.09067,4102.5,4102.4,1.19698]
[1761625476117,1.09067,4102.5,4102.4,0.7582]
[1761625476922,1.09067,4102.5,4102.4,1.19698]
[1761625477922,0.3138,4102.5,4102.4,2.93793603]
[1761625478120,0.5364,4102.9,4102.8,0.97993]
[1761625478417,0.5364,4102.9,4102.8,2.23771194]
[1761625479011,0.97516,4102.6,4102.5,2.16650354]
[1761625479219,1.18906,4102.6,4102.5,3.21288548]
[1761625480022,1.18906,4102.6,4102.5,3.65165548]
[1761625481725,1.18906,4102.6,4102.5,3.97815548]
[1761625482427,1.18906,4102.6,4102.5,1.47248194]
[1761625483527,1.18906,4102.6,4102.5,1.91125194]
[1761625484129,1.18906,4102.6,4102.5,2.23775194]
[1761625487323,1.18906,4102.6,4102.5,3.21288548]
[1761625487526,1.18906,4102.6,4102.5,1.47248194]
[1761625488330,1.18906,4102.6,4102.5,3.21288548]
[1761625489220,1.18906,4102.6,4102.5,3.65165548]
[1761625491033,1.18906,4102.6,4102.5,3.97815548]
[1761625491330,1.18906,4102.6,4102.5,1.91125194]
[1761625491629,1.18906,4102.6,4102.5,2.23775194]
[1761625491817,1.18906,4102.6,4102.5,1.19137]
[1761625492424,0.7503,4102.6,4102.5,1.19137]
[1761625492619,0.43873,4102.9,4102.8,1.19133]
[1761625492824,0.3143,4102.9,4102.8,2.44660865]
[1761625493123,0.3143,4102.9,4102.8,4.18930795]
[1761625493526,0.3143,4103.2,4103.1,1.19131]
[1761625493739,0.00171349,4103.3,4103.2,0.7526]
[1761625493921,0.75470349,4103.3,4103.2,2.00787865]
[1761625494435,0.97680349,4103.3,4103.2,2.00787865]
[1761625495431,0.75470349,4103.3,4103.2,2.00787865]
[1761625495634,0.75470349,4103.3,4103.2,2.44657865]
[1761625496033,0.31601349,4103.3,4103.2,2.44657865]
[1761625496330,0.75469349,4103.3,4103.2,2.44657865]
[1761625497132,0.31601349,4103.3,4103.2,2.44657865]
[1761625498026,0.44039349,4103.3,4103.2,2.44657865]
[1761625498233,0.97679349,4103.3,4103.2,2.44657865]
[1761625499234,0.53811349,4103.3,4103.2,2.44657865]
[1761625499435,0.75469349,4103.3,4103.2,2.44657865]
[1761625499628,0.97679349,4103.3,4103.2,1.1913]
[1761625499829,0.97679349,4103.3,4103.2,2.44657865]
[1761625501737,1.19069349,4103.3,4103.2,2.44657865]
[1761625501933,0.43871,4103.1,4103.0,1.73847398]
[1761625502234,0.7503,4102.9,4102.8,2.38861398]
[1761625502436,1.18903,4102.9,4102.8,2.60331398]
[1761625502629,1.18903,4102.9,4102.8,2.92981398]
[1761625503634,0.3143,4102.9,4102.8,1.19134]
[1761625504037,0.5364,4103.2,4103.1,0.97661]
[1761625504333,0.5364,4103.2,4103.1,2.44658865]
[1761625505428,0.9751,4103.2,4103.1,2.44658865]
[1761625505734,1.2012,4103.2,4103.1,0.2114]
[1761625507730,0.89092,4103.0,4102.9,1.73849355]
[1761625507933,1.19763,4102.9,4102.8,1.73849355]
[1761625508133,1.19763,4102.9,4102.4,2.17727355]
[1761625508134,0.8881,4102.5,4102.4,2.17727355]
[1761625508433,0.8881,4102.5,4102.4,2.40037355]
[1761625509128,1.32687,4102.5,4102.4,1.73849355]
[1761625509329,0.89102,4102.0,4101.9,3.2168722]
[1761625509534,0.8881,4102.0,4101.9,3.6557022]
[1761625509735,0.8881,4102.0,4101.9,4.2181022]
[1761625510236,0.6689,4102.0,4101.9,4.2181022]
[1761625510728,0.5397,4102.0,4101.9,4.2181022]
[1761625510928,0.323,4102.0,4101.9,2.47960865]
[1761625511935,0.323,4102.0,4101.9,4.21753947]
[1761625513238,0.323,4102.5,4102.4,0.43878]
[1761625513534,0.21841349,4103.3,4103.2,0.7855]
[1761625513738,0.21841349,4103.3,4103.2,2.04077865]
[1761625513933,0.54141349,4103.3,4103.2,2.04077865]
[1761625514640,0.98009349,4103.3,4103.2,2.47947865]
[1761625515233,0.54141349,4103.3,4103.2,2.47947865]
[1761625515734,0.98009349,4103.3,4103.2,2.47947865]
[1761625515933,0.54141349,4103.3,4103.2,2.47947865]
[1761625516240,0.00171349,4103.3,4103.2,2.47947865]
[1761625517438,0.32471349,4103.3,4103.2,2.47947865]
[1761625518434,0.00171349,4103.3,4103.2,2.47947865]
[1761625518736,0.00171349,4103.3,4103.2,4.21740947]
[1761625523042,0.00171349,4103.3,4103.2,2.47947865]
[1761625523944,0.97829,4104.2,4104.1,0.7855]
[1761625524138,0.97829,4104.2,4104.1,2.47937865]
[1761625525444,0.97829,4104.2,4104.1,3.77932906]
[1761625525745,0.5397,4104.2,4104.1,3.77932906]
[1761625525946,0.97829,4104.2,4104.1,2.47937865]
[1761625526245,0.98070532,4104.2,4104.1,2.47937865]
[1761625527336,0.54211532,4104.2,4104.1,2.47937865]
[1761625527947,0.98070532,4104.2,4104.1,2.47937865]
[1761625528343,1.19990532,4104.2,4104.1,1.69927865]
[1761625528549,0.8881,4103.5,4103.4,0.43867]
[1761625528741,0.7589,4103.9,4103.8,0.2209]
[1761625528940,1.19753,4103.8,4103.7,2.77764096]
[1761625529647,1.19753,4103.8,4103.7,3.21628096]
[1761625530049,1.19753,4103.8,4103.7,3.43718096]
[1761625531253,1.19753,4103.8,4103.7,3.77868096]
[1761625531551,0.7589,4103.8,4103.7,3.77868096]
[1761625532651,0.7589,4103.8,4103.7,2.47941865]
[1761625532652,1.19753,4103.8,4103.7,2.47941865]
[1761625533853,0.5397,4103.8,4103.7,2.47941865]
[1761625534053,0.97833,4103.8,4103.7,2.47941865]
[1761625535162,0.5397,4103.8,4103.7,2.47941865]
[1761625536458,0.97833,4103.8,4103.7,2.47941865]
[1761625538258,1.34521,4104.0,4103.9,0.7809]
[1761625538457,1.34521,4104.0,4103.9,0.66612]
[1761625538863,1.34521,4104.0,4103.9,1.21952]
[1761625539160,1.34521,4104.0,4103.9,2.5178482]
[1761625539354,1.34521,4104.0,4103.9,1.21952]
[1761625540047,1.34521,4104.0,4103.9,0.89342]
[1761625540652,0.43863,4103.8,4103.7,1.92141865]
[1761625540853,1.20833,4103.8,4103.7,1.92141865]
[1761625541359,1.20833,4103.8,4103.7,4.20936437]
[1761625542047,0.7697,4103.8,4103.7,4.20936437]
[1761625542252,0.5548,4103.8,4103.7,4.20936437]
[1761625542960,0.3283,4104.0,4103.9,1.21952]
[1761625543359,0.3283,4104.0,4103.9,2.95364467]
[1761625543754,0.76691,4104.0,4103.9,2.95364467]
[1761625544057,0.99341,4104.0,4103.9,1.21952]
[1761625544458,1.13031,4104.0,4103.9,1.21952]
[1761625545363,0.5548,4104.0,4103.9,1.21952]
[1761625545763,0.99341,4104.0,4103.9,1.21952]
[1761625546163,0.3283,4104.0,4103.9,1.21952]
[1761625546464,0.7669,4104.1,4104.0,0.9922]
[1761625546662,0.7669,4104.1,4104.0,2.95635318]
[1761625547067,0.3283,4104.1,4104.0,2.95635318]
[1761625548170,0.3283,4104.1,4104.0,1.2195]
[1761625549163,0.44100532,4104.2,4104.1,0.4386]
[1761625549370,0.00241532,4104.2,4104.1,4.21200304]
[1761625549869,0.00241532,4104.2,4104.1,2.47477865]
[1761625553773,0.00241532,4104.2,4104.1,2.26446266]
[1761625556771,0.33071532,4104.2,4104.1,2.26446266]
[1761625557576,0.55721532,4104.2,4104.1,1.2195]
[1761625558580,0.33071532,4104.2,4104.1,1.2195]
[1761625560777,0.55721532,4104.2,4104.1,0.7809]
[1761625561081,0.77211532,4104.2,4104.1,0.4548]
[1761625561283,1.21070532,4104.2,4104.1,0.4548]
[1761625561484,1.21070532,4104.2,4104.1,0.8934]
[1761625561783,0.77211532,4104.2,4104.1,1.2195]
[1761625561983,0.55721532,4104.2,4104.1,1.2195]
[1761625562786,0.99580532,4104.2,4104.1,1.2195]
[1761625563189,0.99580532,4104.2,4104.1,0.7809]
[1761625564482,0.99580532,4104.2,4104.1,1.2195]
[1761625565690,0.00241532,4104.2,4104.1,1.2195]
[1761625566078,0.00241532,4104.2,4104.1,3.38328785]
[1761625566284,0.00241532,4104.2,4104.1,1.2195]
[1761625567283,0.7004,4105.0,4104.9,1.22981]
[1761625567479,1.22886,4105.4,4105.3,0.2191]
[1761625567688,0.1292,4105.5,4104.9,2.78078349]
[1761625567689,0.3625,4105.0,4104.9,3.66959349]
[1761625567993,1.361,4105.0,4104.9,4.01059349]
[1761625568183,1.361,4105.0,4104.9,3.57208349]
[1761625568390,1.3634547,4105.0,4104.9,3.67218516]
[1761625570197,1.3634547,4105.0,4104.9,1.93636433]
[1761625571998,1.3634547,4105.0,4104.9,1.49785433]
[1761625572895,1.3634547,4105.0,4104.9,0.00259167]
[1761625575998,2.40841736,4105.0,4104.9,0.00259167]
[1761625576299,2.40841736,4105.0,4104.6,0.65010041]
[1761625576300,1.19893,4104.7,4104.6,0.65010041]
[1761625576507,1.19898,4104.3,4104.2,1.30002029]
[1761625577206,1.19898,4104.3,4104.2,1.3020108]
[1761625578403,1.19898,4104.3,4104.2,0.00199051]
[1761625580506,1.19898,4104.3,4104.2,1.3020108]
[1761625581199,1.19898,4104.3,4104.2,0.00199051]
[1761625600316,1.19898,4104.3,4104.2,1.3020108]
[1761625602218,1.19898,4104.3,4104.2,0.00199051]
[1761625602916,1.19898,4104.3,4104.2,0.77459051]
[1761625603323,1.19898,4104.3,4104.2,1.21318051]
[1761625605026,0.97258,4104.3,4104.2,1.21318051]
[1761625605222,0.97258,4104.3,4104.2,2.94900134]
[1761625605725,1.18618,4104.3,4104.2,2.94900134]
[1761625606226,1.18618,4104.3,4104.2,2.9516311]
[1761625606519,1.18618,4104.3,4104.2,2.5130411]
[1761625609122,1.18618,4104.3,4104.2,1.9588411]
[1761625609427,1.18618,4104.3,4104.2,2.2924411]
[1761625610029,1.18618,4104.3,4104.2,0.55399051]
[1761625610424,1.18618,4104.3,4104.2,0.00199051]
[1761625611424,1.00138,4104.3,4104.2,0.77459051]
[1761625611629,1.00138,4104.3,4104.2,2.5130411]
[1761625612031,1.21498,4104.3,4104.2,2.5130411]
[1761625612230,1.21498,4104.3,4104.2,0.77459051]
[1761625612425,1.21498,4104.3,4104.2,1.21318051]
[1761625612933,1.21498,4104.3,4104.2,0.77459051]
[1761625615434,1.21498,4104.3,4104.2,2.5130411]
[1761625616234,1.21498,4104.3,4104.2,0.77459051]
[1761625619735,1.21498,4104.3,4104.2,1.21318051]
[1761625620133,0.78357,4104.5,4104.4,0.65916]
[1761625620328,1.00137,4104.5,4104.4,1.21116]
[1761625620530,1.21497,4104.5,4104.4,0.7726]
[1761625620835,1.21496,4104.5,4104.4,1.21117]
[1761625621633,1.21496,4104.5,4104.4,0.7726]
[1761625622236,1.21496,4104.5,4104.4,1.21117]
[1761625622732,1.21496,4104.5,4104.4,0.7726]
[1761625623133,1.21496,4104.5,4104.4,1.21117]
[1761625623327,1.34886,4104.5,4104.4,0.7726]
[1761625624235,1.20888,4104.3,4104.2,0.00199051]
[1761625626948,1.20888,4104.3,4104.2,1.30628102]
[1761625627147,1.20888,4104.3,4104.2,0.00199051]
[1761625629150,1.20888,4104.3,4104.2,0.87132305]
[1761625630547,1.20888,4104.3,4104.2,0.00199051]
[1761625632854,1.20888,4104.3,4104.2,0.65391111]
[1761625633045,1.20888,4104.3,4104.2,0.00199051]
[1761625633350,1.20888,4104.3,4104.2,0.65379464]
[1761625633952,1.40325084,4104.3,4104.2,0.65379464]
[1761625634452,1.40325084,4104.3,4104.2,0.00199051]
[1761625634851,1.20888,4104.3,4104.2,0.00199051]
[1761625635049,1.20888,4104.3,4104.2,0.65359272]
[1761625638156,1.20888,4104.3,4104.2,0.00199051]
[1761625638665,1.20888,4104.3,4104.2,0.65359272]
[1761625640154,1.20888,4104.3,4104.2,0.00199051]
[1761625641547,0.96822,4103.9,4103.8,0.86907158]
[1761625641746,0.96822,4103.9,4103.6,1.30429051]
[1761625641747,0.8779,4103.5,4103.4,0.86907158]
[1761625641946,0.4329,4103.4,4103.2,0.86907158]
[1761625642258,0.7528,4103.3,4103.2,0.86907158]
[1761625642452,1.19148,4103.3,4103.2,0.87130417]
[1761625643148,1.19148,4103.3,4103.2,0.00223259]
[1761625648449,1.19148,4103.3,4103.2,0.78853259]
[1761625648956,1.19148,4103.3,4103.2,0.56523259]
[1761625649158,1.19148,4103.3,4103.2,0.00223259]
[1761625649755,0.4329,4102.3,4102.2,1.30429051]
[1761625649959,1.19159,4102.3,4102.2,1.30429051]
[1761625650159,1.19161,4102.1,4102.0,1.30429051]
[1761625650356,1.31672,4102.0,4101.9,1.53339051]
[1761625650554,1.19163,4101.9,4101.8,1.86729051]
[1761625650960,1.19163,4101.9,4101.8,1.87041898]
[1761625651258,1.19163,4101.9,4101.8,2.09371898]
[1761625652360,0.00257896,4102.0,4101.9,1.22513]
[1761625652556,0.00257896,4102.0,4101.9,2.52717576]
[1761625652862,0.21227896,4102.0,4101.9,2.52717576]
[1761625653060,0.53217896,4102.0,4101.9,2.52717576]
[1761625653560,0.21227896,4102.0,4101.9,2.52717576]
[1761625654358,0.65109896,4102.0,4101.9,1.22513]
[1761625654559,1.30743669,4104.3,4103.0,0.137]
[1761625654763,0.6635,4104.1,4104.0,0.9048]
[1761625655646,0.66582703,4104.1,4104.0,0.9048]
[1761625656764,0.88092703,4104.1,4104.0,0.9048]
[1761625657861,1.22612703,4104.1,4104.0,0.9048]
[1761625658060,1.22612703,4104.1,4104.0,0.5437]
[1761625658264,1.22612703,4104.1,4104.0,0.3286]
[1761625659269,1.22612703,4104.1,4104.0,0.5437]
[1761625659564,0.44,4103.8,4103.7,0.3286]
[1761625659770,1.22385,4103.6,4103.5,0.3521]
[1761625660466,1.22385,4103.6,4103.5,0.6807]
[1761625662063,1.22389,4103.2,4103.1,1.30164592]
[1761625662269,0.87872,4103.0,4102.9,1.74084592]
[1761625662560,0.6636,4103.2,4103.1,0.7678]
[1761625669172,0.8787,4103.2,4103.1,0.7678]
[1761625669869,0.7852,4102.9,4102.8,1.84534592]
[1761625670173,0.44,4102.9,4102.8,2.06944592]
[1761625670672,0.87873,4102.9,4102.8,2.06944592]
[1761625671966,0.87873,4102.9,4102.8,2.50818592]
[1761625672773,0.87873,4102.9,4102.8,2.06944592]
[1761625676774,1.22393,4102.9,4102.8,2.06944592]
[1761625677070,0.87873,4102.9,4102.8,2.06944592]
[1761625677275,0.66363,4102.9,4102.8,2.06944592]
[1761625678378,0.66363,4102.9,4102.8,2.50818592]
[1761625679076,0.66363,4102.9,4102.8,2.06944592]
[1761625682070,0.43877,4102.5,4102.4,1.30164592]
[1761625682271,0.6637,4102.2,4102.1,0.86928186]
[1761625682476,1.22401,4102.1,4102.0,1.19788186]
[1761625682977,1.22401,4102.1,4102.0,0.3286]
[1761625683580,1.22401,4102.1,4102.0,0.5437]
[1761625684973,1.22401,4102.1,4102.0,0.6804]
[1761625685174,1.22401,4102.1,4102.0,0.9107]
[1761625687169,0.87881,4102.1,4102.0,0.9107]
[1761625690179,1.19221,4102.1,4102.0,0.9107]
[1761625691882,0.7534,4102.1,4101.8,0.00312847]
[1761625692179,2.22790377,4101.9,4101.8,0.55502847]
[1761625692581,2.22790377,4101.9,4101.8,0.76972847]
[1761625694781,2.22790377,4101.9,4101.8,0.32632847]
[1761625695482,2.22790377,4101.9,4101.8,0.76972847]
[1761625695780,1.91450377,4101.9,4101.8,0.76972847]
[1761625698279,2.22790377,4101.9,4101.8,0.76972847]
[1761625698989,2.22790377,4101.9,4101.8,0.00312847]
[1761625700077,2.22790377,4101.9,4101.8,8.47e-06]
[1761625700478,3.27387754,4101.9,4101.8,8.47e-06]
[1761625700977,2.22790377,4101.9,4101.8,8.47e-06]
[1761625701376,3.27387754,4101.9,4101.8,8.47e-06]
[1761625701575,2.22790377,4101.9,4101.8,8.47e-06]
[1761625702580,10.83504754,4101.9,4100.8,0.65168663]
[1761625702784,0.7431,4100.8,4100.7,0.65168663]
[1761625702986,0.7431,4100.6,4100.5,0.65168663]
[1761625703184,0.7431,4100.6,4100.5,0.97488663]
[1761625703384,0.7431,4100.6,4100.5,0.3232]
[1761625703576,1.78907377,4100.6,4100.5,0.3232]
[1761625703788,1.79207554,4100.6,4100.5,0.3256343]
[1761625704179,1.79207554,4100.6,4100.5,0.5543343]
[1761625705086,1.79207554,4100.6,4100.5,0.3256343]
[1761625706087,2.23104554,4100.6,4100.5,0.3256343]
[1761625709089,2.23104554,4100.6,4100.5,0.97732093]
[1761625710393,2.23104554,4100.6,4100.5,0.3256343]
[1761625711400,2.23104554,4100.6,4100.5,0.97732093]
[1761625712901,2.23104554,4100.6,4100.5,1.20602093]
[1761625716201,0.87167177,4100.6,4100.5,1.54782093]
[1761625716407,0.44197177,4100.6,4100.5,0.8961343]
[1761625716906,0.67247177,4100.6,4100.5,0.8961343]
[1761625717206,0.44197177,4100.6,4100.5,0.8961343]
[1761625722507,0.44197177,4100.6,4100.5,1.76541616]
[1761625725300,0.44197177,4100.6,4100.5,0.8961343]
[1761625725704,0.67247177,4100.6,4100.5,1.76773386]
[1761625725905,1.21047177,4100.6,4100.5,1.76773386]
[1761625726612,0.88187177,4100.6,4100.5,1.76773386]
[1761625726805,1.92784554,4100.6,4100.5,1.76773386]
[1761625727412,1.92784554,4100.6,4100.5,0.8961343]
[1761625728213,2.25644554,4100.6,4100.5,0.8961343]
[1761625729306,2.25644554,4100.6,4100.5,2.19778022]
[1761625729607,1.92784554,4100.6,4100.5,2.19778022]
[1761625730410,1.92784554,4100.6,4100.5,0.8961343]
[1761625733413,2.25644554,4100.6,4100.5,0.8961343]
[1761625734016,1.92784554,4100.6,4100.5,0.8961343]
[1761625735111,2.25644554,4100.6,4100.5,0.3256343]
[1761625735613,2.25644554,4100.6,4100.5,0.5511343]
[1761625735814,1.21047177,4100.6,4100.5,0.0024343]
[1761625736014,1.21047177,4100.6,4100.5,0.5566343]
[1761625737014,0.67247177,4100.6,4100.5,0.8973343]
[1761625739724,1.21047177,4100.6,4100.5,0.8973343]
[1761625740219,1.21047177,4100.6,4100.5,0.0024343]
[1761625740421,1.21047177,4100.6,4100.5,0.3311343]
[1761625740614,1.21047177,4100.6,4100.5,0.0024343]
[1761625740814,1.21047177,4100.6,4100.5,1.31378633]
[1761625741118,1.21047177,4100.6,4100.5,0.0024343]
[1761625741416,1.21047177,4100.6,4100.5,0.87657686]
[1761625742122,1.21047177,4100.6,4100.5,1.20527686]
[1761625743015,1.21047177,4100.6,4100.5,0.87657686]
[1761625743520,1.21047177,4100.6,4100.5,1.20527686]
[1761625744414,1.22897177,4100.6,4100.5,1.77817686]
[1761625745317,1.22897177,4100.6,4100.5,1.20527686]
[1761625745913,1.22897177,4100.6,4100.5,0.87657686]
[1761625747324,1.22897177,4100.6,4100.5,0.0024343]
[1761625749218,1.22897177,4100.6,4099.5,1.73552789]
[1761625749219,0.3248,4099.6,4099.5,1.73552789]
[1761625749423,0.3248,4099.3,4099.2,0.3411]
[1761625749723,1.18571,4099.3,4099.2,0.5684]
[1761625750119,1.18571,4099.3,4099.2,0.00296926]
[1761625751017,1.18571,4099.3,4099.2,0.65806157]
[1761625751217,1.18571,4099.3,4099.2,0.00296926]
[1761625755619,1.18571,4099.3,4099.2,0.34406926]
[1761625756420,1.18571,4099.3,4099.2,0.00296926]
[1761625758225,1.18571,4099.3,4099.2,0.34406926]
[1761625759226,1.18571,4099.3,4099.2,0.00296926]
[1761625762229,1.18571,4099.3,4099.2,0.57136926]
[1761625768630,1.18571,4099.3,4099.2,0.34406926]
[1761625771038,0.86091,4099.3,4099.2,0.79006926]
[1761625771234,0.43911,4099.3,4099.2,0.79006926]
[1761625771740,1.18571,4099.3,4099.2,1.44516157]
[1761625771942,1.18571,4099.3,4099.2,0.79006926]
[1761625772339,1.18571,4099.3,4099.2,1.44516157]
[1761625775346,1.18571,4099.3,4099.2,0.79006926]
[1761625777038,1.18571,4099.3,4099.2,0.57136926]
[1761625778448,1.18571,4099.3,4099.2,0.78096926]
[1761625778941,0.86091,4099.3,4099.2,0.78096926]
[1761625779144,0.43911,4099.3,4099.2,0.78096926]
[1761625779735,0.66261,4099.3,4099.2,2.08832319]
[1761625780548,0.43911,4099.3,4099.2,2.08832319]
[1761625786357,0.43911,4099.3,4099.2,0.78096926]
[1761625786758,3.64265306,4100.1,4099.5,0.1338]
[1761625786759,0.5405,4100.1,4099.5,0.1338]
[1761625786960,2.45491492,4100.0,4099.9,0.65535918]
[1761625787561,2.57991492,4100.0,4099.9,0.65535918]
[1761625789462,1.19805,4099.9,4099.8,0.97025918]
[1761625791157,1.19805,4099.9,4099.8,1.18045918]
[1761625791561,1.19805,4099.9,4099.8,1.39005918]
[1761625791758,0.88105,4099.9,4099.8,1.39005918]
[1761625792256,1.19805,4099.9,4099.8,1.39005918]
[1761625794564,1.19805,4099.9,4099.8,0.97025918]
[1761625795264,1.19805,4099.9,4099.8,0.65535918]
[1761625795865,2.24600391,4099.9,4099.8,0.65535918]
[1761625797060,2.24600391,4099.9,4099.8,0.97025918]
[1761625798570,2.24600391,4099.9,4099.8,0.3149]
[1761625799668,2.24600391,4099.9,4099.8,0.5251]
[1761625801067,1.92900391,4099.9,4099.8,0.7347]
[1761625801268,0.43907,4099.7,4099.6,0.87381224]